[Event "DVM U14 2019"]
[Site "Magedburg"]
[Date "2019.12.30"]
[Round "7"]
[White "Schubert, Nikita"]
[Black "Jahrke, Jonas"]
[Result "0-1"]
[ECO "A57"]
[WhiteElo "1914"]
[BlackElo "1833"]
[Annotator "NA"]
[PlyCount "60"]
[EventDate "2019.12.27"]
[EventType "team-tourn"]
[EventRounds "7"]
[EventCountry "GER"]
[SourceTitle "playchess.com"]
[Source "ChessBase"]
[SourceQuality "1"]
[WhiteTeam "ESV Gera"]
[BlackTeam "SF Essen-Katernberg"]
[WhiteTeamCountry "GER"]
[BlackTeamCountry "GER"]
[TimeControl "40/5400+30:1800+30"]

1. d4 {[%emt 0:00:00]} Nf6 {[%emt 0:00:00]} 2. c4 {[%emt 0:00:00]} c5 {[%emt 0:00:00]} 3. d5 {[%emt 0:00:17]} b5 {[%emt 0:00:00]} 4. Nd2 {[%emt 0:00:50]} g6 {[%emt 0:01:35]} 5. e4 {[%emt 0:01:45] unterminated} d6 {[%emt 0:03:33] unterminated} 6. cxb5 {[%emt 0:09:16] unterminated} a6 {[%emt 0:01:25]} 7. bxa6 {[%emt 0:00:37] unterminated} Bg7 {[%emt 0:01:20] unterminated} 8. Bb5+ {[%emt 0:12:54]} Nbd7 {[%emt 0:01:12] unterminated} 9. Ne2 {[%emt 0:02:20] unterminated} Bxa6 {[%emt 0:01:58] unterminated} 10. Bxa6 {[%emt 0:00:27]} Rxa6 {[%emt 0:00:08] unterminated} 11. O-O {[%emt 0:00:49] unterminated} O-O {[%emt 0:00:31] unterminated} 12. Nc3 {[%emt 0:01:46] unterminated} Nb6 {[%emt 0:05:26] unterminated} 13. Qe2 {[%emt 0:10:42] unterminated} Qa8 {[%emt 0:04:13] unterminated} 14. Rb1 {[%emt 0:08:44] unterminated} Nfd7 {[%emt 0:05:09] unterminated} 15. a3 {[%emt 0:05:13] unterminated} Rb8 {[%emt 0:18:59] unterminated} 16. Nb5 {[%emt 0:09:58] unterminated} Qb7 {[%emt 0:04:43] unterminated} 17. b3 {[%emt 0:12:38] unterminated} Nxd5 $1 {[%emt 0:06:47]} 18. exd5 $15 {[%emt 0:00:17]} Qxb5 {[%emt 0:00:08]} 19. Qxe7 {[%emt 0:08:53]} Nf6 {[%emt 0:02:48]} 20. Ne4 {[%emt 0:07:23]} Nxd5 {[%emt 0:06:12]} 21. Qh4 {[%emt 0:01:03]} Re8 {[%emt 0:12:30]} 22. Ng5 {[%emt 0:02:38]} h6 {[%emt 0:01:13]} 23. Nf3 {[%emt 0:00:42]} Nc3 {[%emt 0:01:01]} 24. Rb2 {[%emt 0:01:54]} Ne2+ {[%emt 0:00:46]} 25. Rxe2 {[%emt 0:00:45]} Qxe2 {[%emt 0:00:53]} 26. Bxh6 {[%emt 0:00:37]} Bxh6 {[%emt 0:01:12]} 27. Qxh6 {[%emt 0:00:02]} Rxa3 {[%emt 0:00:57]} 28. h4 {[%emt 0:00:29]} Qxf1+ {[%emt 0:01:13]} 29. Kh2 {[%emt 0:00:17]} Qxf2 {[%emt 0:05:49]} 30. h5 {[%emt 0:00:00]} Ra2 {[%emt 0:01:25] normal} 0-1

[Event "DVM U14 2019"]
[Site "Magedburg"]
[Date "2019.12.30"]
[Round "7"]
[White "Zeuner, Ole"]
[Black "Gutewort, Paul Emil"]
[Result "1-0"]
[ECO "B06"]
[WhiteElo "1794"]
[BlackElo "1714"]
[Annotator "NA"]
[PlyCount "51"]
[EventDate "2019.12.27"]
[EventType "team-tourn"]
[EventRounds "7"]
[EventCountry "GER"]
[SourceTitle "playchess.com"]
[Source "ChessBase"]
[SourceQuality "1"]
[WhiteTeam "Schachzwerge Magdeburg"]
[BlackTeam "SF Nordost Berlin"]
[WhiteTeamCountry "GER"]
[BlackTeamCountry "GER"]
[TimeControl "40/5400+30:1800+30"]

1. e4 {[%emt 0:00:00]} g6 {[%emt 0:00:00]} 2. d4 {[%emt 0:00:00]} Bg7 {[%emt 0:00:00]} 3. Nc3 {[%emt 0:00:00]} d6 {[%emt 0:00:00]} 4. Be3 {[%emt 0:00:00]} a6 {[%emt 0:00:00]} 5. h4 {[%emt 0:00:23]} h5 {[%emt 0:00:00]} 6. Qd2 {[%emt 0:00:08]} b5 {[%emt 0:01:15]} 7. f3 {[%emt 0:00:06]} Nd7 {[%emt 0:00:04]} 8. Nh3 {[%emt 0:00:10]} Bb7 {[%emt 0:00:36]} 9. Ng5 {[%emt 0:00:14]} e6 {[%emt 0:00:08]} 10. Ne2 {[%emt 0:07:23]} Nb6 {[%emt 0:04:59]} 11. Ng3 {[%emt 0:06:35]} Qe7 {[%emt 0:01:44]} 12. c3 {[%emt 0:01:36]} Nf6 {[%emt 0:01:09]} 13. Bd3 {[%emt 0:01:59]} c5 {[%emt 0:22:26]} 14. O-O {[%emt 0:11:28]} O-O {[%emt 0:01:25]} 15. Rae1 {[%emt 0:05:05]} Rac8 {[%emt 0:11:51]} 16. d5 {[%emt 0:03:06]} exd5 {[%emt 0:09:27]} 17. exd5 {[%emt 0:02:13]} Qd7 {[%emt 0:01:24]} 18. f4 {[%emt 0:04:16]} Ng4 {[%emt 0:08:53]} 19. f5 {[%emt 0:03:27]} Ne5 {[%emt 0:02:51]} 20. Be4 {[%emt 0:08:42]} Nbc4 {[%emt 0:02:32]} 21. Qc2 {[%emt 0:02:10]} Nxe3 {[%emt 0:05:23]} 22. Rxe3 {[%emt 0:00:45]} Qe8 23. Nxh5 {[%emt 0:12:33]} gxh5 {[%emt 0:14:24]} 24. f6 {[%emt 0:00:37]} Ng6 {[%emt 0:05:42]} 25. fxg7 {[%emt 0:01:18]} Kxg7 {[%emt 0:00:16] normal} 26. Qe2 {[%emt 0:11:21] normal} 1-0

[Event "DVM U14 2019"]
[Site "Magedburg"]
[Date "2019.12.30"]
[Round "7"]
[White "Reichmann, Felix"]
[Black "Stockmann, Till"]
[Result "0-1"]
[ECO "A20"]
[WhiteElo "1791"]
[BlackElo "1894"]
[Annotator "NA"]
[PlyCount "88"]
[EventDate "2019.12.27"]
[EventType "team-tourn"]
[EventRounds "7"]
[EventCountry "GER"]
[SourceTitle "playchess.com"]
[Source "ChessBase"]
[SourceQuality "1"]
[WhiteTeam "SF Nordost Berlin"]
[BlackTeam "Schachzwerge Magdeburg"]
[WhiteTeamCountry "GER"]
[BlackTeamCountry "GER"]
[TimeControl "40/5400+30:1800+30"]

1. c4 {[%emt 0:00:00]} e5 {[%emt 0:00:00]} 2. g3 {[%emt 0:00:00]} Nf6 {[%emt 0:00:00]} 3. Bg2 {[%emt 0:00:00]} d5 {[%emt 0:00:23]} 4. cxd5 {[%emt 0:00:00]} Nxd5 {[%emt 0:00:07]} 5. Nc3 {[%emt 0:00:00]} Nb6 {[%emt 0:00:17]} 6. Nf3 {[%emt 0:00:17]} Nc6 {[%emt 0:00:13]} 7. O-O {[%emt 0:00:04]} Be7 {[%emt 0:00:31]} 8. b3 {[%emt 0:00:13]} O-O {[%emt 0:01:22]} 9. Bb2 {[%emt 0:00:06]} Be6 {[%emt 0:01:03] unterminated} 10. Rc1 {[%emt 0:07:50] unterminated unterminated. A29: English Opening: Four Knights Variation with 4 g3} (10. d4 exd4 11. Nb5 Bd5 12. Qd2 Bf6 13. Rad1 Re8 14. Rfe1 Rc8 15. Nbxd4 Nxd4 16. Bxd4 c5 17. Bxf6 Qxf6 {½-½ (32) Santos Ruiz,M (2543)-Cheparinov,I (2691) Caleta 2019}) 10... f5 {[%emt 0:01:51] unterminated} 11. d3 {[%emt 0:02:20] unterminated} Bf6 {[%emt 0:02:00] unterminated} 12. Nd2 {[%emt 0:04:15] unterminated} Nd5 {[%emt 0:03:42] unterminated} (12... Qe8 $11 {remains equal.}) 13. Nc4 {[%emt 0:03:04] unterminated} Nxc3 {[%emt 0:05:21]} 14. Bxc3 {[%emt 0:00:15] unterminated} Bd5 {[%emt 0:00:16] unterminated} 15. Bxd5+ $146 {[%emt 0:23:46]} ({Predecessor:} 15. e4 Bxc4 16. dxc4 f4 17. Qd5+ Kh8 {1-0 (67) Raicevic,I (2279)-Zajic,M (2046) Nis 2011}) 15... Qxd5 {[%emt 0:00:12]} 16. Ne3 {[%emt 0:00:17] unterminated} Qe6 {[%emt 0:01:39] unterminated} 17. Nc2 {[%emt 0:09:29] unterminated} Rad8 {[%emt 0:01:31]} 18. Qd2 {[%emt 0:00:37] unterminated} Ne7 {[%emt 0:06:14] unterminated} 19. b4 {[%emt 0:02:07] unterminated} Nd5 {[%emt 0:02:46] unterminated} 20. Bb2 {[%emt 0:05:03] unterminated} f4 {[%emt 0:05:15] unterminated} 21. f3 {[%emt 0:20:01] unterminated} (21. e4 $17 {was called for.} Nb6 22. Ne1) 21... Bg5 {[%emt 0:03:39]} 22. g4 {[%emt 0:00:30] unterminated} h5 {[%emt 0:01:51]} 23. h3 {[%emt 0:00:51] unterminated} Qh6 {[%emt 0:04:36] unterminated} 24. Kg2 {[%emt 0:02:00]} e4 {[%emt 0:00:30] unterminated} 25. Qe1 {[%emt 0:01:02] unterminated} exd3 {[%emt 0:04:24]} 26. exd3 {[%emt 0:00:11] unterminated} Rfe8 {[%emt 0:03:48]} 27. Qf2 {[%emt 0:01:16] unterminated} Qa6 $19 {[%emt 0:03:09]} (27... hxg4 $142 28. hxg4 Bh4) 28. Rfd1 {[%emt 0:08:09]} Qxa2 {[%emt 0:02:18]} 29. Bd4 {[%emt 0:00:59]} Ne3+ {[%emt 0:01:32]} 30. Bxe3 {[%emt 0:00:37]} fxe3 {[%emt 0:00:08]} 31. Qe2 {[%emt 0:00:10]} Qf7 {[%emt 0:01:34]} 32. Ne1 {[%emt 0:01:46]} Qf4 {[%emt 0:04:56]} 33. Rc4 {[%emt 0:00:15]} Rd4 {[%emt 0:00:09]} 34. Qa2 {[%emt 0:00:43]} Kh8 {[%emt 0:00:37]} 35. Qa4 {[%emt 0:02:08]} Red8 {[%emt 0:01:05]} 36. Rxd4 {[%emt 0:00:22]} Qxd4 {[%emt 0:00:52]} 37. Qb5 {[%emt 0:01:01]} Qf4 {[%emt 0:01:34]} 38. h4 {[%emt 0:02:08]} Bxh4 {[%emt 0:02:53]} 39. Qxh5+ {[%emt 0:00:11]} Qh6 {[%emt 0:00:03]} 40. Qe5 {[%emt 0:00:50]} Qf6 {[%emt 0:07:46]} 41. Qxe3 {[%emt 0:31:43]} Qc6 {[%emt 0:35:06]} 42. Rc1 {[%emt 0:00:00]} Re8 {[%emt 0:00:00]} 43. Qd2 {[%emt 0:00:00]} Qd6 {[%emt 0:00:00]} 44. f4 {[%emt 0:00:00] normal} Qe6 {[%emt 0:00:00] normal} 0-1

[Event "DVM U14 2019"]
[Site "Magedburg"]
[Date "2019.12.30"]
[Round "7"]
[White "Huo, Da"]
[Black "Rennkamp, David"]
[Result "1-0"]
[ECO "C54"]
[WhiteElo "1771"]
[BlackElo "1395"]
[Annotator "NA"]
[PlyCount "51"]
[EventDate "2019.12.27"]
[EventType "team-tourn"]
[EventRounds "7"]
[EventCountry "GER"]
[SourceTitle "playchess.com"]
[Source "ChessBase"]
[SourceQuality "1"]
[WhiteTeam "Hamburger SK"]
[BlackTeam "SC Turm Lüneburg"]
[WhiteTeamCountry "GER"]
[BlackTeamCountry "GER"]
[TimeControl "40/5400+30:1800+30"]

1. e4 {[%emt 0:00:00]} e5 {[%emt 0:00:00]} 2. Nf3 {[%emt 0:00:00]} Nc6 {[%emt 0:00:00]} 3. Bc4 {[%emt 0:00:11]} Bc5 {[%emt 0:00:28]} 4. c3 {[%emt 0:00:18]} Nf6 {[%emt 0:02:43]} 5. d4 {[%emt 0:00:21]} exd4 {[%emt 0:01:32]} 6. O-O {[%emt 0:00:23]} dxc3 {[%emt 0:18:41]} 7. e5 {[%emt 0:04:19]} cxb2 {[%emt 0:17:50]} 8. Bxb2 {[%emt 0:00:43]} Ng4 {[%emt 0:02:08]} 9. Bxf7+ {[%emt 0:02:01]} Kxf7 {[%emt 0:05:27]} 10. Qd5+ {[%emt 0:00:51]} Kf8 {[%emt 0:00:26]} 11. Qxc5+ {[%emt 0:00:29]} Qe7 {[%emt 0:00:04]} 12. Qc1 {[%emt 0:06:12]} Ke8 {[%emt 0:05:49]} 13. Re1 {[%emt 0:01:00]} b6 {[%emt 0:03:20]} 14. Nc3 {[%emt 0:01:20]} Bb7 {[%emt 0:06:03]} 15. Qf4 {[%emt 0:02:18]} Nh6 {[%emt 0:02:19]} 16. Nb5 {[%emt 0:01:00]} Rc8 {[%emt 0:01:15]} 17. Nd6+ {[%emt 0:00:52]} Kd8 {[%emt 0:01:56]} 18. Nxb7+ {[%emt 0:00:27]} Ke8 {[%emt 0:00:03]} 19. Nd6+ {[%emt 0:01:09]} Kd8 {[%emt 0:00:07]} 20. Nxc8 {[%emt 0:01:01]} Kxc8 {[%emt 0:00:01]} 21. Qc4 {[%emt 0:01:01]} Re8 {[%emt 0:04:43]} 22. Rad1 {[%emt 0:01:32]} g6 {[%emt 0:01:17]} 23. e6 {[%emt 0:00:30]} d6 {[%emt 0:06:11]} 24. Qxc6 {[%emt 0:00:23]} Kb8 {[%emt 0:00:08]} 25. Bf6 {[%emt 0:00:40]} Qf8 {[%emt 0:00:54]} 26. Bg7 {[%emt 0:00:07] normal} 1-0

[Event "DVM U14 2019"]
[Site "Magedburg"]
[Date "2019.12.30"]
[Round "7"]
[White "Zamhoefer, Luca"]
[Black "Muller, Magnus"]
[Result "1-0"]
[ECO "B22"]
[WhiteElo "1724"]
[BlackElo "1481"]
[Annotator "NA"]
[PlyCount "69"]
[EventDate "2019.12.27"]
[EventType "team-tourn"]
[EventRounds "7"]
[EventCountry "GER"]
[SourceTitle "playchess.com"]
[Source "ChessBase"]
[SourceQuality "1"]
[WhiteTeam "SF Essen-Katernberg"]
[BlackTeam "ESV Gera"]
[WhiteTeamCountry "GER"]
[BlackTeamCountry "FAI"]
[TimeControl "40/5400+30:1800+30"]

1. e4 {[%emt 0:00:00]} c5 {[%emt 0:01:08]} 2. c3 {[%emt 0:00:00]} Nf6 {[%emt 0:00:04]} 3. e5 {[%emt 0:00:00]} Nd5 {[%emt 0:00:06]} 4. d4 {[%emt 0:00:08]} cxd4 {[%emt 0:00:03]} 5. Nf3 {[%emt 0:00:07]} Nc6 {[%emt 0:00:03]} 6. cxd4 {[%emt 0:01:00]} d6 {[%emt 0:00:05]} 7. Bc4 {[%emt 0:00:53]} dxe5 {[%emt 0:00:03]} 8. Bxd5 {[%emt 0:15:48]} Qxd5 {[%emt 0:00:17]} 9. Nc3 {[%emt 0:00:52]} Qd6 {[%emt 0:00:03]} 10. d5 {[%emt 0:03:33]} Nd4 {[%emt 0:00:03]} 11. Nxd4 {[%emt 0:01:08]} exd4 {[%emt 0:00:04]} 12. Qxd4 {[%emt 0:00:15]} e5 {[%emt 0:00:02]} 13. Qd3 {[%emt 0:05:10]} Bd7 {[%emt 0:00:16]} 14. O-O {[%emt 0:00:55]} Be7 {[%emt 0:08:25]} 15. Ne4 {[%emt 0:08:44]} Qg6 {[%emt 0:00:52]} 16. Re1 {[%emt 0:03:43]} f5 {[%emt 0:20:23]} 17. Ng3 {[%emt 0:07:34]} e4 {[%emt 0:02:54]} 18. Qb3 {[%emt 0:02:24]} b6 {[%emt 0:00:18]} 19. Bf4 {[%emt 0:06:23]} Bc5 {[%emt 0:01:08]} 20. Qc3 {[%emt 0:04:35]} Rc8 {[%emt 0:05:24]} 21. Qe5+ {[%emt 0:08:57]} Kf7 {[%emt 0:02:22]} 22. b3 {[%emt 0:01:28]} Rhe8 {[%emt 0:01:57]} 23. Qb2 {[%emt 0:00:12]} Bd6 {[%emt 0:02:25]} 24. Bxd6 {[%emt 0:03:22]} Qxd6 {[%emt 0:00:10]} 25. Rad1 {[%emt 0:01:42]} Rc5 {[%emt 0:00:27]} 26. Nh5 {[%emt 0:01:34]} Rg8 {[%emt 0:01:03]} 27. Qd2 {[%emt 0:02:06]} g6 {[%emt 0:01:21]} 28. Ng3 {[%emt 0:00:57]} Rgc8 {[%emt 0:01:31]} 29. h4 {[%emt 0:04:04]} h5 {[%emt 0:02:20]} 30. Qh6 {[%emt 0:00:49]} Rg8 {[%emt 0:01:58]} 31. Nxh5 {[%emt 0:03:07]} Qf8 {[%emt 0:03:48]} 32. Qh7+ {[%emt 0:01:14]} Ke8 {[%emt 0:00:06]} 33. Nf6+ {[%emt 0:00:06]} Qxf6 {[%emt 0:00:10]} 34. Qxg8+ {[%emt 0:00:07]} Ke7 {[%emt 0:00:28]} 35. d6+ {[%emt 0:00:13] normal} 1-0

[Event "DVM U14 2019"]
[Site "Magedburg"]
[Date "2019.12.30"]
[Round "7"]
[White "Rasch, Lukas"]
[Black "Gerber, Anna Sophie"]
[Result "0-1"]
[ECO "A01"]
[WhiteElo "1596"]
[BlackElo "1513"]
[Annotator "NA"]
[PlyCount "78"]
[EventDate "2019.12.27"]
[EventType "team-tourn"]
[EventRounds "7"]
[EventCountry "GER"]
[SourceTitle "playchess.com"]
[Source "ChessBase"]
[SourceQuality "1"]
[WhiteTeam "SF Essen-Katernberg"]
[BlackTeam "ESV Gera"]
[WhiteTeamCountry "GER"]
[BlackTeamCountry "GER"]
[TimeControl "40/5400+30:1800+30"]

1. b3 {[%emt 0:00:00]} d5 {[%emt 0:00:00]} 2. Bb2 {[%emt 0:00:00]} Nf6 {[%emt 0:00:37]} 3. e3 {[%emt 0:00:17]} e6 {[%emt 0:01:15]} 4. f4 {[%emt 0:00:39]} Be7 {[%emt 0:02:29]} 5. Nf3 {[%emt 0:01:25]} b6 {[%emt 0:02:35]} 6. Bb5+ {[%emt 0:02:08]} c6 {[%emt 0:01:45]} 7. Bd3 {[%emt 0:01:45]} Ba6 {[%emt 0:04:11]} 8. O-O {[%emt 0:03:04]} O-O {[%emt 0:04:49]} 9. Qe2 {[%emt 0:03:30]} Bxd3 {[%emt 0:02:47]} 10. cxd3 {[%emt 0:00:54]} c5 {[%emt 0:05:56]} 11. d4 {[%emt 0:03:25]} Nc6 {[%emt 0:03:32]} 12. dxc5 {[%emt 0:01:36]} Bxc5 {[%emt 0:06:36]} 13. d3 {[%emt 0:03:18]} Ng4 {[%emt 0:06:11]} 14. Nd4 {[%emt 0:02:25]} Bxd4 {[%emt 0:02:30]} 15. Bxd4 {[%emt 0:03:10]} Nxd4 {[%emt 0:01:36]} 16. exd4 {[%emt 0:00:05]} Qf6 {[%emt 0:03:07]} 17. Qb2 {[%emt 0:06:41]} h5 {[%emt 0:02:55]} 18. Nd2 {[%emt 0:05:43]} Rac8 {[%emt 0:01:55]} 19. Rf3 {[%emt 0:01:23]} Rc7 {[%emt 0:01:54]} 20. h3 {[%emt 0:01:14]} Nh6 {[%emt 0:00:28]} 21. Rc1 {[%emt 0:02:01]} Rxc1+ {[%emt 0:03:18]} 22. Qxc1 {[%emt 0:00:15]} Qxd4+ {[%emt 0:00:12]} 23. Kh2 {[%emt 0:01:07]} Nf5 {[%emt 0:02:48]} 24. Nf1 {[%emt 0:03:31]} Nh4 {[%emt 0:08:29]} 25. Rg3 {[%emt 0:00:32]} Qf2 {[%emt 0:02:46]} 26. a3 {[%emt 0:02:12]} Ng6 {[%emt 0:13:20]} 27. Rf3 {[%emt 0:01:05]} Qd4 {[%emt 0:01:15]} 28. g3 {[%emt 0:02:11]} h4 {[%emt 0:02:45]} 29. g4 {[%emt 0:00:05]} e5 {[%emt 0:01:26]} 30. f5 {[%emt 0:00:51]} e4 {[%emt 0:01:05]} 31. dxe4 {[%emt 0:00:31]} dxe4 {[%emt 0:00:57]} 32. Qe3 {[%emt 0:02:45]} Qe5+ {[%emt 0:01:13]} 33. Kg1 {[%emt 0:00:45]} exf3 {[%emt 0:01:33]} 34. fxg6 {[%emt 0:00:17]} Qxe3+ {[%emt 0:00:53]} 35. Nxe3 {[%emt 0:00:02]} fxg6 {[%emt 0:00:40]} 36. Kf2 {[%emt 0:00:50]} Rf7 {[%emt 0:01:15]} 37. Nc4 {[%emt 0:01:36]} Rd7 {[%emt 0:02:15]} 38. Ke3 {[%emt 0:01:44]} f2 {[%emt 0:01:53]} 39. Kxf2 {[%emt 0:00:14]} Rd3 {[%emt 0:00:18] normal} 0-1

[Event "DVM U14 2019"]
[Site "Magedburg"]
[Date "2019.12.30"]
[Round "7"]
[White "Duduka, Artem"]
[Black "Heutling, Elina"]
[Result "0-1"]
[ECO "C24"]
[WhiteElo "1578"]
[BlackElo "1796"]
[Annotator "NA"]
[PlyCount "108"]
[EventDate "2019.12.27"]
[EventType "team-tourn"]
[EventRounds "7"]
[EventCountry "GER"]
[SourceTitle "playchess.com"]
[Source "ChessBase"]
[SourceQuality "1"]
[WhiteTeam "SF Nordost Berlin"]
[BlackTeam "Schachzwerge Magdeburg"]
[WhiteTeamCountry "UKR"]
[BlackTeamCountry "GER"]
[TimeControl "40/5400+30:1800+30"]

1. e4 {[%emt 0:00:00]} e5 {[%emt 0:00:00]} 2. Bc4 {[%emt 0:00:14]} Nf6 {[%emt 0:01:54]} 3. d4 {[%emt 0:00:49]} exd4 {[%emt 0:03:56]} 4. e5 {[%emt 0:01:18]} d5 {[%emt 0:03:32]} 5. Bb3 {[%emt 0:09:05]} Ne4 {[%emt 0:03:42]} 6. Nf3 {[%emt 0:04:25]} Nc6 {[%emt 0:07:38]} 7. h3 {[%emt 0:02:00]} a6 {[%emt 0:04:29]} 8. O-O {[%emt 0:00:53]} Be6 {[%emt 0:02:24]} 9. Nxd4 {[%emt 0:08:17]} Nxe5 {[%emt 0:13:03]} 10. Nxe6 {[%emt 0:01:09]} fxe6 {[%emt 0:00:19]} 11. Qh5+ {[%emt 0:01:14]} Ng6 {[%emt 0:00:17]} 12. Re1 {[%emt 0:02:00]} Bc5 {[%emt 0:03:22]} 13. Be3 {[%emt 0:13:38]} Bxe3 {[%emt 0:00:29]} 14. Rxe3 {[%emt 0:00:44]} Qf6 {[%emt 0:00:41]} 15. Rxe4 {[%emt 0:04:43]} dxe4 {[%emt 0:00:26]} 16. Nc3 {[%emt 0:00:11]} O-O-O {[%emt 0:09:16]} 17. Qc5 {[%emt 0:01:31]} Kb8 {[%emt 0:03:53]} 18. Bc4 {[%emt 0:01:20]} Ne5 {[%emt 0:02:22]} 19. Nxe4 {[%emt 0:01:34]} Qf5 {[%emt 0:00:24]} 20. f3 {[%emt 0:01:19]} Nxc4 {[%emt 0:02:07]} 21. Qxc4 {[%emt 0:00:10]} Qd5 {[%emt 0:00:46]} 22. Qc3 {[%emt 0:00:39]} Qd4+ {[%emt 0:03:59]} 23. Qxd4 {[%emt 0:00:05]} Rxd4 {[%emt 0:00:10]} 24. Kf2 {[%emt 0:00:12]} Rhd8 {[%emt 0:01:01]} 25. Ke2 {[%emt 0:00:17]} e5 {[%emt 0:05:16]} 26. Rc1 {[%emt 0:00:16]} Ka7 {[%emt 0:01:53]} 27. Rb1 {[%emt 0:00:11]} b5 {[%emt 0:00:20]} 28. Rc1 {[%emt 0:00:24]} Kb6 {[%emt 0:00:29]} 29. Rb1 {[%emt 0:00:08]} c5 {[%emt 0:01:35]} 30. b3 {[%emt 0:00:23]} c4 {[%emt 0:02:14]} 31. b4 {[%emt 0:00:16]} a5 {[%emt 0:01:47]} 32. a3 {[%emt 0:00:20]} axb4 {[%emt 0:00:20]} 33. axb4 {[%emt 0:00:03]} Ra8 {[%emt 0:00:56]} 34. Rb2 {[%emt 0:00:20]} Ra1 {[%emt 0:02:55]} 35. c3 {[%emt 0:00:57]} Rd3 {[%emt 0:03:10]} 36. Rd2 {[%emt 0:01:18]} Rxd2+ {[%emt 0:01:59]} 37. Kxd2 {[%emt 0:01:00]} Ra2+ {[%emt 0:00:10]} 38. Ke3 {[%emt 0:00:11]} Rxg2 {[%emt 0:00:27]} 39. Nf2 {[%emt 0:00:14]} Rh2 {[%emt 0:01:54]} 40. Ke2 {[%emt 0:00:18]} Kc6 {[%emt 0:00:26]} 41. Kf1 {[%emt 0:30:09]} Kd5 {[%emt 0:30:41]} 42. Kg1 {[%emt 0:00:06]} Rxf2 {[%emt 0:00:04]} 43. Kxf2 {[%emt 0:00:03]} e4 {[%emt 0:00:20]} 44. f4 {[%emt 0:00:08]} Ke6 {[%emt 0:00:26]} 45. Ke2 {[%emt 0:00:11]} Kf5 {[%emt 0:00:24]} 46. Ke3 {[%emt 0:00:14]} h5 {[%emt 0:00:13]} 47. h4 {[%emt 0:00:32]} g6 {[%emt 0:00:06]} 48. Kd4 {[%emt 0:00:19]} Kxf4 {[%emt 0:00:10]} 49. Kc5 {[%emt 0:00:04]} e3 {[%emt 0:00:10]} 50. Kxb5 {[%emt 0:00:03]} e2 {[%emt 0:00:06]} 51. Kc6 {[%emt 0:00:12]} e1=Q {[%emt 0:00:09]} 52. b5 {[%emt 0:00:40]} Qxc3 {[%emt 0:00:12]} 53. b6 {[%emt 0:00:04]} Qb4 {[%emt 0:00:30]} 54. b7 {[%emt 0:00:06]} c3 {[%emt 0:00:08] normal} 0-1

[Event "DVM U14 2019"]
[Site "Magedburg"]
[Date "2019.12.30"]
[Round "7"]
[White "Wusterack, Paul"]
[Black "von Krosigk, Florian"]
[Result "1/2-1/2"]
[ECO "C68"]
[WhiteElo "1539"]
[BlackElo "1984"]
[Annotator "NA"]
[PlyCount "34"]
[EventDate "2019.12.27"]
[EventType "team-tourn"]
[EventRounds "7"]
[EventCountry "GER"]
[SourceTitle "playchess.com"]
[Source "ChessBase"]
[SourceQuality "1"]
[WhiteTeam "SC Turm Lüneburg"]
[BlackTeam "Hamburger SK"]
[BlackTeamCountry "GER"]
[TimeControl "40/5400+30:1800+30"]

{[%evp 14,30,4,-45,31,22,27,20,22,27,52,17,32767,32767,32767,32767,81,32767,47]} 1. e4 {[%emt 0:00:00]} e5 {[%emt 0:00:18]} 2. Nf3 {[%emt 0:00:00]} Nc6 {[%emt 0:00:04]} 3. Bb5 {[%emt 0:00:00]} a6 {[%emt 0:00:08]} 4. Bxc6 {[%emt 0:00:00]} dxc6 {[%emt 0:00:05]} 5. O-O {[%emt 0:00:02]} Bg4 {[%emt 0:05:37]} 6. h3 {[%emt 0:00:08]} h5 {[%emt 0:00:05]} 7. d3 {[%emt 0:00:05] unterminated} Qf6 {[%emt 0:04:16]} 8. Nbd2 {[%emt 0:00:29] unterminated} Bc5 {[%emt 0:02:03] unterminated} ({Better is} 8... Ne7 $11) 9. Nc4 {[%emt 0:09:19] unterminated} Bxf3 $1 {[%emt 0:05:56]} 10. Qxf3 {[%emt 0:00:11] unterminated} Qxf3 {[%emt 0:00:45]} 11. gxf3 {[%emt 0:00:08]} f6 {[%emt 0:00:02] unterminated} 12. Be3 {[%emt 0:02:26] unterminated} Bxe3 {[%emt 0:25:44]} 13. fxe3 {[%emt 0:01:49] unterminated} c5 {[%emt 0:03:33] unterminated} 14. a4 {[%emt 0:02:39] unterminated} b6 {[%emt 0:08:05] unterminated} 15. f4 {[%emt 0:10:23] unterminated} exf4 $14 {[%emt 0:01:00]} 16. exf4 {[%emt 0:00:11]} Ne7 {[%emt 0:01:48]} 17. f5 {[%emt 0:08:21]} Nc6 {[%emt 0:03:37] normal} 1/2-1/2